[Event "Live Chess"]
[Site "Chess.com"]
[Date "2023.05.20"]
[Round "-"]
[White "Missedidea"]
[Black "gmnorfolk"]
[Result "0-1"]
[WhiteElo "1741"]
[BlackElo "2100"]
[TimeControl "300"]
[EndTime "14:09:30 PDT"]
[Termination "gmnorfolk won on time"]

1. d4 {[%clk 0:04:58.7]} 1... Nf6 {[%clk 0:04:58.6]} 2. c4 {[%clk 0:04:57]} 2...
e6 {[%clk 0:04:56.4]} 3. Nc3 {[%clk 0:04:55.3]} 3... Bb4 {[%clk 0:04:55.5]} 4.
e3 {[%clk 0:04:54.3]} 4... O-O {[%clk 0:04:54.2]} 5. Bd3 {[%clk 0:04:52.6]} 5...
d5 {[%clk 0:04:53.1]} 6. Nf3 {[%clk 0:04:51.2]} 6... dxc4 {[%clk 0:04:51.6]} 7.
Bxc4 {[%clk 0:04:49.5]} 7... c5 {[%clk 0:04:51.5]} 8. O-O {[%clk 0:04:47.3]}
8... cxd4 {[%clk 0:04:50.6]} 9. exd4 {[%clk 0:04:45.8]} 9... b6 {[%clk
0:04:50.2]} 10. Bg5 {[%clk 0:04:40.7]} 10... Bb7 {[%clk 0:04:48.6]} 11. Ne5
{[%clk 0:04:33.8]} 11... Nbd7 {[%clk 0:04:44.2]} 12. Qe2 {[%clk 0:04:22.8]}
12... Bxc3 {[%clk 0:04:32.9]} 13. bxc3 {[%clk 0:04:20.9]} 13... Rc8 {[%clk
0:04:29.1]} 14. Bb5 {[%clk 0:04:04.4]} 14... Nxe5 {[%clk 0:04:22.2]} 15. dxe5
{[%clk 0:04:01.4]} 15... Qd5 {[%clk 0:04:18]} 16. f3 {[%clk 0:03:43.1]} 16... a6
{[%clk 0:03:43.2]} 17. exf6 {[%clk 0:03:15.9]} 17... Qxb5 {[%clk 0:03:24.3]} 18.
Qxb5 {[%clk 0:03:12.4]} 18... axb5 {[%clk 0:03:23]} 19. fxg7 {[%clk 0:02:53]}
19... Kxg7 {[%clk 0:03:22.9]} 20. Bf4 {[%clk 0:02:44.6]} 20... f6 {[%clk
0:03:19.9]} 21. Rac1 {[%clk 0:02:40.7]} 21... Bd5 {[%clk 0:03:15.2]} 22. Rf2
{[%clk 0:02:35.5]} 22... Ra8 {[%clk 0:03:07.5]} 23. Bd6 {[%clk 0:02:14.8]} 23...
Rfc8 {[%clk 0:03:01.8]} 24. a3 {[%clk 0:02:11.3]} 24... Rc6 {[%clk 0:02:54.9]}
25. Bb4 {[%clk 0:02:09.2]} 25... h5 {[%clk 0:02:49.2]} 26. Rd2 {[%clk
0:02:04.5]} 26... Kg6 {[%clk 0:02:43.7]} 27. Kf2 {[%clk 0:02:03.4]} 27... Kf5
{[%clk 0:02:39.8]} 28. Ke3 {[%clk 0:01:59.1]} 28... Rg8 {[%clk 0:02:36.4]} 29.
Rg1 {[%clk 0:01:56.8]} 29... Rc7 {[%clk 0:02:31.2]} 30. Rd4 {[%clk 0:01:54.7]}
30... Rcg7 {[%clk 0:02:17.1]} 31. g3 {[%clk 0:01:51.9]} 31... Rd7 {[%clk
0:02:03.1]} 32. g4+ {[%clk 0:01:33.2]} 32... hxg4 {[%clk 0:01:58.7]} 33. fxg4+
{[%clk 0:01:30.6]} 33... Kg6 {[%clk 0:01:54.3]} 34. Rg3 {[%clk 0:01:28.1]} 34...
Rh8 {[%clk 0:01:51.4]} 35. h3 {[%clk 0:01:26.3]} 35... Rh4 {[%clk 0:01:48.8]}
36. Rd2 {[%clk 0:01:21]} 36... Rdh7 {[%clk 0:01:46.2]} 37. Rh2 {[%clk
0:01:17.3]} 37... Kf7 {[%clk 0:01:42.6]} 38. Kd4 {[%clk 0:01:14.7]} 38... Bc6
{[%clk 0:01:33.9]} 39. Ke3 {[%clk 0:01:11.9]} 39... e5 {[%clk 0:01:31.8]} 40.
Kd3 {[%clk 0:01:06.5]} 40... Ke6 {[%clk 0:01:29.8]} 41. Ke3 {[%clk 0:01:04.5]}
41... Rd7 {[%clk 0:01:26.2]} 42. Rd2 {[%clk 0:01:00.7]} 42... Bd5 {[%clk
0:01:19]} 43. Kf2 {[%clk 0:00:55.5]} 43... Re7 {[%clk 0:01:15.1]} 44. Rgd3
{[%clk 0:00:52.4]} 44... Rd7 {[%clk 0:01:12.9]} 45. Kg3 {[%clk 0:00:49.8]} 45...
Rhh7 {[%clk 0:01:09]} 46. h4 {[%clk 0:00:47.9]} 46... e4 {[%clk 0:01:07.2]} 47.
Rd4 {[%clk 0:00:44.5]} 47... f5 {[%clk 0:01:03.3]} 48. g5 {[%clk 0:00:42.3]}
48... Ke5 {[%clk 0:01:01.2]} 49. g6 {[%clk 0:00:39.5]} 49... Rhg7 {[%clk
0:00:40.6]} 50. h5 {[%clk 0:00:38.3]} 50... f4+ {[%clk 0:00:38.8]} 51. Kh4
{[%clk 0:00:36]} 51... e3 {[%clk 0:00:36.4]} 52. Re2 {[%clk 0:00:32]} 52... Be6
{[%clk 0:00:24.4]} 53. Rxd7 {[%clk 0:00:28.6]} 53... Bxd7 {[%clk 0:00:23.4]} 54.
Kg5 {[%clk 0:00:25.4]} 54... Ke4 {[%clk 0:00:21.3]} 55. Bd6 {[%clk 0:00:21.3]}
55... f3 {[%clk 0:00:19.6]} 56. Re1 {[%clk 0:00:17.5]} 56... f2 {[%clk
0:00:18.6]} 57. Rh1 {[%clk 0:00:13.9]} 57... e2 {[%clk 0:00:17.7]} 58. Rh4+
{[%clk 0:00:12.3]} 58... Ke3 {[%clk 0:00:14.6]} 59. Rh3+ {[%clk 0:00:10.7]}
59... Kd2 {[%clk 0:00:13.3]} 60. Bf4+ {[%clk 0:00:09.4]} 60... Kd1 {[%clk
0:00:11.6]} 61. Rd3+ {[%clk 0:00:06.9]} 61... Kc2 {[%clk 0:00:10.2]} 62. Rd2+
{[%clk 0:00:02.8]} 62... Kxc3 {[%clk 0:00:09]} 63. Rxe2 {[%clk 0:00:01.1]} 63...
f1=Q {[%clk 0:00:08.3]} 0-1

[Event "Live Chess"]
[Site "Chess.com"]
[Date "2023.05.20"]
[Round "-"]
[White "Supertromp"]
[Black "LutherSullivan"]
[Result "1/2-1/2"]
[WhiteElo "2180"]
[BlackElo "2060"]
[TimeControl "300"]
[EndTime "14:09:35 PDT"]
[Termination "Game drawn by repetition"]

1. e4 {[%clk 0:04:58.8]} 1... c5 {[%clk 0:04:58.4]} 2. Nf3 {[%clk 0:04:57.9]}
2... Nc6 {[%clk 0:04:57.9]} 3. Bb5 {[%clk 0:04:57]} 3... g6 {[%clk 0:04:56.5]}
4. Bxc6 {[%clk 0:04:56.4]} 4... dxc6 {[%clk 0:04:54.1]} 5. O-O {[%clk
0:04:56.3]} 5... Bg7 {[%clk 0:04:52.9]} 6. d3 {[%clk 0:04:45.4]} 6... Qc7 {[%clk
0:04:37]} 7. h3 {[%clk 0:04:41.7]} 7... e5 {[%clk 0:04:30]} 8. Be3 {[%clk
0:04:32.4]} 8... b6 {[%clk 0:04:28.4]} 9. Nbd2 {[%clk 0:04:30.2]} 9... Nf6
{[%clk 0:04:22.5]} 10. a4 {[%clk 0:04:24.8]} 10... a5 {[%clk 0:04:20.4]} 11. c3
{[%clk 0:04:20]} 11... O-O {[%clk 0:04:16.9]} 12. Nc4 {[%clk 0:04:19]} 12... Nd7
{[%clk 0:04:11.8]} 13. Qb3 {[%clk 0:04:11]} 13... Ba6 {[%clk 0:04:04.6]} 14.
Nfd2 {[%clk 0:03:52.9]} 14... Rfd8 {[%clk 0:04:01.6]} 15. f4 {[%clk 0:03:46.7]}
15... Rab8 {[%clk 0:03:52.8]} 16. fxe5 {[%clk 0:03:44.8]} 16... Nxe5 {[%clk
0:03:51.4]} 17. Nxe5 {[%clk 0:03:43]} 17... Bxe5 {[%clk 0:03:49.3]} 18. Nc4
{[%clk 0:03:32.1]} 18... Bh2+ {[%clk 0:03:33.3]} 19. Kh1 {[%clk 0:03:30.3]}
19... Rxd3 {[%clk 0:03:32.2]} 20. e5 {[%clk 0:03:09.4]} 20... Bxc4 {[%clk
0:03:21.1]} 21. Qxc4 {[%clk 0:03:08.4]} 21... Rxe3 {[%clk 0:03:19.8]} 22. Kxh2
{[%clk 0:03:05]} 22... Qxe5+ {[%clk 0:03:14.1]} 23. Kh1 {[%clk 0:03:04.2]} 23...
Rf8 {[%clk 0:03:13.4]} 24. Qa6 {[%clk 0:03:00.1]} 24... Qc7 {[%clk 0:03:00.4]}
25. Rad1 {[%clk 0:02:49]} 25... Rfe8 {[%clk 0:02:55.2]} 26. Qc4 {[%clk
0:02:35.6]} 26... R8e4 {[%clk 0:02:39.5]} 27. Qb3 {[%clk 0:02:28.3]} 27... c4
{[%clk 0:02:36.6]} 28. Qa3 {[%clk 0:02:22.5]} 28... c5 {[%clk 0:02:35.2]} 29.
Qa1 {[%clk 0:02:07.3]} 29... Re2 {[%clk 0:02:30.5]} 30. Qc1 {[%clk 0:02:05.3]}
30... R4e3 {[%clk 0:02:22.7]} 31. Kg1 {[%clk 0:01:22.9]} 31... Kg7 {[%clk
0:01:58.9]} 32. Rf2 {[%clk 0:01:16]} 32... Qe5 {[%clk 0:01:40.8]} 33. Rdf1
{[%clk 0:00:47.5]} 33... Rxf2 {[%clk 0:01:39]} 34. Kxf2 {[%clk 0:00:47.4]} 34...
Qg3+ {[%clk 0:01:26.9]} 35. Kg1 {[%clk 0:00:46.4]} 35... Re2 {[%clk 0:01:25.8]}
36. Rxf7+ {[%clk 0:00:42.7]} 36... Kxf7 {[%clk 0:00:58]} 37. Qf1+ {[%clk
0:00:42.6]} 37... Rf2 {[%clk 0:00:36.8]} 38. Qxf2+ {[%clk 0:00:41.7]} 38...
Qxf2+ {[%clk 0:00:36.6]} 39. Kxf2 {[%clk 0:00:41.6]} 39... Kf6 {[%clk
0:00:34.6]} 40. g4 {[%clk 0:00:36.5]} 40... Ke5 {[%clk 0:00:32.1]} 41. Ke3
{[%clk 0:00:31.8]} 41... h5 {[%clk 0:00:27.2]} 42. Kf3 {[%clk 0:00:31.1]} 42...
hxg4+ {[%clk 0:00:22.7]} 43. hxg4 {[%clk 0:00:31]} 43... g5 {[%clk 0:00:16.2]}
44. Ke3 {[%clk 0:00:30.4]} 44... Kd5 {[%clk 0:00:15.9]} 45. Kf3 {[%clk
0:00:29.8]} 45... Ke5 {[%clk 0:00:12.6]} 46. Ke3 {[%clk 0:00:29.3]} 46... Kd5
{[%clk 0:00:11.7]} 47. Kf3 {[%clk 0:00:28.8]} 47... Ke5 {[%clk 0:00:11.6]}
1/2-1/2

[Event "Live Chess"]
[Site "Chess.com"]
[Date "2023.05.20"]
[Round "-"]
[White "Man-Del-Brot"]
[Black "parcellforce"]
[Result "1-0"]
[WhiteElo "1125"]
[BlackElo "1371"]
[TimeControl "300"]
[EndTime "14:09:35 PDT"]
[Termination "Man-Del-Brot won by resignation"]

1. e4 {[%clk 0:04:52.1]} 1... e5 {[%clk 0:04:55.8]} 2. Bc4 {[%clk 0:04:49.9]}
2... Nc6 {[%clk 0:04:54.8]} 3. d3 {[%clk 0:04:48.8]} 3... Nf6 {[%clk 0:04:53.5]}
4. Nf3 {[%clk 0:04:45.1]} 4... Bc5 {[%clk 0:04:52.4]} 5. O-O {[%clk 0:04:43.1]}
5... d6 {[%clk 0:04:51.7]} 6. Bg5 {[%clk 0:04:41.4]} 6... h6 {[%clk 0:04:48.8]}
7. Be3 {[%clk 0:04:33.3]} 7... Bxe3 {[%clk 0:04:46.9]} 8. fxe3 {[%clk 0:04:32]}
8... Na5 {[%clk 0:04:46.6]} 9. Bb3 {[%clk 0:04:26.1]} 9... Nxb3 {[%clk
0:04:45.9]} 10. cxb3 {[%clk 0:04:25.1]} 10... Bg4 {[%clk 0:04:45.5]} 11. Nc3
{[%clk 0:04:23.7]} 11... O-O {[%clk 0:04:34.4]} 12. Qc2 {[%clk 0:04:17.3]} 12...
c6 {[%clk 0:04:25.6]} 13. h3 {[%clk 0:04:16.3]} 13... Bh5 {[%clk 0:04:20.8]} 14.
d4 {[%clk 0:04:09.3]} 14... Bxf3 {[%clk 0:04:08]} 15. Rxf3 {[%clk 0:04:06]}
15... Qd7 {[%clk 0:03:53.4]} 16. dxe5 {[%clk 0:04:04.2]} 16... dxe5 {[%clk
0:03:53.3]} 17. Rd1 {[%clk 0:04:01.8]} 17... Qe6 {[%clk 0:03:44.4]} 18. Rf2
{[%clk 0:03:32.6]} 18... Rad8 {[%clk 0:03:42.1]} 19. Rfd2 {[%clk 0:03:30.2]}
19... Rxd2 {[%clk 0:03:36.4]} 20. Rxd2 {[%clk 0:03:27.4]} 20... Nd7 {[%clk
0:03:14.2]} 21. a4 {[%clk 0:03:23.7]} 21... b6 {[%clk 0:03:06.5]} 22. b4 {[%clk
0:03:21.4]} 22... Nf6 {[%clk 0:03:05]} 23. b5 {[%clk 0:03:15.8]} 23... cxb5
{[%clk 0:02:43.1]} 24. Nxb5 {[%clk 0:03:13.9]} 24... Rc8 {[%clk 0:02:22.9]} 25.
Qd1 {[%clk 0:02:50.2]} 25... Nxe4 {[%clk 0:02:04.3]} 26. Rd8+ {[%clk 0:02:45.9]}
26... Rxd8 {[%clk 0:01:56.8]} 27. Qxd8+ {[%clk 0:02:43.8]} 27... Kh7 {[%clk
0:01:54.4]} 28. Qd3 {[%clk 0:02:24.4]} 28... f5 {[%clk 0:01:43.8]} 29. Nxa7
{[%clk 0:02:16.3]} 29... Nc5 {[%clk 0:01:38.7]} 30. Qb5 {[%clk 0:02:07.1]} 30...
Qe7 {[%clk 0:01:23.6]} 31. Nc6 {[%clk 0:02:01.1]} 31... Qc7 {[%clk 0:01:19.9]}
32. a5 {[%clk 0:01:53]} 32... Ne4 {[%clk 0:01:00.4]} 33. axb6 {[%clk 0:01:48.9]}
33... Qb7 {[%clk 0:00:56.7]} 34. Nd8 {[%clk 0:01:35]} 34... Qb8 {[%clk
0:00:49.3]} 35. Nc6 {[%clk 0:01:26]} 35... Qb7 {[%clk 0:00:48.3]} 36. Na5 {[%clk
0:01:23.4]} 36... Qb8 {[%clk 0:00:46.2]} 37. b7 {[%clk 0:01:21.6]} 37... Nd6
{[%clk 0:00:45.2]} 38. Qb6 {[%clk 0:01:15.5]} 38... Nf7 {[%clk 0:00:38.3]} 39.
Nc6 {[%clk 0:01:12.6]} 39... Qxb7 {[%clk 0:00:30.3]} 40. Qxb7 {[%clk 0:01:10.9]}
40... Nd6 {[%clk 0:00:30.1]} 41. Qd7 {[%clk 0:01:07.9]} 41... Ne4 {[%clk
0:00:29.5]} 42. Qxf5+ {[%clk 0:01:06.2]} 42... g6 {[%clk 0:00:28.2]} 43. Qxe4
{[%clk 0:01:05.1]} 43... Kg7 {[%clk 0:00:27.8]} 44. Qxe5+ {[%clk 0:01:04.3]}
44... Kf7 {[%clk 0:00:27.7]} 45. Qe7+ {[%clk 0:01:02.3]} 45... Kg8 {[%clk
0:00:26.7]} 46. b4 {[%clk 0:01:00.8]} 46... g5 {[%clk 0:00:26]} 47. b5 {[%clk
0:01:00.6]} 47... g4 {[%clk 0:00:25.3]} 48. b6 {[%clk 0:00:59]} 1-0

[Event "Live Chess"]
[Site "Chess.com"]
[Date "2023.05.20"]
[Round "-"]
[White "Ferrarifan27"]
[Black "KeithArkell"]
[Result "0-1"]
[WhiteElo "2064"]
[BlackElo "2617"]
[TimeControl "300"]
[EndTime "14:09:41 PDT"]
[Termination "KeithArkell won by resignation"]

1. e4 {[%clk 0:04:57.5]} 1... c6 {[%clk 0:04:58.7]} 2. d4 {[%clk 0:04:56.2]}
2... d5 {[%clk 0:04:58]} 3. e5 {[%clk 0:04:55.7]} 3... c5 {[%clk 0:04:57.3]} 4.
dxc5 {[%clk 0:04:54.4]} 4... Nc6 {[%clk 0:04:56.7]} 5. a3 {[%clk 0:04:53.6]}
5... a5 {[%clk 0:04:55.1]} 6. Nf3 {[%clk 0:04:51.7]} 6... Bg4 {[%clk 0:04:53.6]}
7. h3 {[%clk 0:04:46.6]} 7... Bxf3 {[%clk 0:04:52.3]} 8. Qxf3 {[%clk 0:04:46.2]}
8... e6 {[%clk 0:04:51.7]} 9. Bf4 {[%clk 0:04:42.5]} 9... Bxc5 {[%clk
0:04:50.1]} 10. Bb5 {[%clk 0:04:41.1]} 10... Ne7 {[%clk 0:04:49]} 11. O-O {[%clk
0:04:39.3]} 11... Ng6 {[%clk 0:04:48.2]} 12. Bg3 {[%clk 0:04:38]} 12... O-O
{[%clk 0:04:47]} 13. Re1 {[%clk 0:04:36.4]} 13... Bd4 {[%clk 0:04:45.6]} 14. c3
{[%clk 0:04:29.1]} 14... Bxe5 {[%clk 0:04:41.9]} 15. Bxc6 {[%clk 0:04:27.2]}
15... Bxg3 {[%clk 0:04:41.1]} 16. Bxb7 {[%clk 0:04:23.6]} 16... Rb8 {[%clk
0:04:34.9]} 17. Qxg3 {[%clk 0:04:21.1]} 17... Rxb7 {[%clk 0:04:33.3]} 18. b4
{[%clk 0:04:18.9]} 18... Qc7 {[%clk 0:04:31.2]} 19. Qd3 {[%clk 0:03:48.3]} 19...
Rc8 {[%clk 0:04:27.8]} 20. Rc1 {[%clk 0:03:41.7]} 20... axb4 {[%clk 0:04:02.1]}
21. axb4 {[%clk 0:03:40.1]} 21... Rxb4 {[%clk 0:04:01.1]} 22. Nd2 {[%clk
0:03:35.8]} 22... Rb6 {[%clk 0:03:54.6]} 23. c4 {[%clk 0:03:29]} 23... Rc6
{[%clk 0:03:51.9]} 24. Ra4 {[%clk 0:03:22.3]} 24... Ne5 {[%clk 0:03:50.9]} 25.
Qd4 {[%clk 0:03:19.3]} 25... Nxc4 {[%clk 0:03:50]} 26. Nxc4 {[%clk 0:03:17.9]}
26... Rxc4 {[%clk 0:03:49.1]} 27. Raxc4 {[%clk 0:03:15.9]} 27... dxc4 {[%clk
0:03:48.4]} 28. Rc3 {[%clk 0:03:13.8]} 28... h6 {[%clk 0:03:47.5]} 29. Qe4
{[%clk 0:03:11.2]} 29... Qc5 {[%clk 0:03:45.7]} 30. Qb7 {[%clk 0:03:08.2]} 30...
Rc7 {[%clk 0:03:43.7]} 31. Qa8+ {[%clk 0:03:06.1]} 31... Kh7 {[%clk 0:03:42.6]}
32. Qe4+ {[%clk 0:03:05.3]} 32... g6 {[%clk 0:03:41.9]} 33. Qf4 {[%clk
0:02:59.3]} 33... Kg7 {[%clk 0:03:37.9]} 34. h4 {[%clk 0:02:50.9]} 34... h5
{[%clk 0:03:35.8]} 35. Qe4 {[%clk 0:02:41.2]} 35... Rc6 {[%clk 0:03:34.7]} 36.
Qf4 {[%clk 0:02:38.8]} 36... Qd5 {[%clk 0:03:31.8]} 37. Rf3 {[%clk 0:02:35]}
37... Qd1+ {[%clk 0:03:24.9]} 38. Kh2 {[%clk 0:02:34.2]} 38... Qd6 {[%clk
0:03:24.3]} 39. Qxd6 {[%clk 0:02:31.7]} 39... Rxd6 {[%clk 0:03:23.4]} 0-1

[Event "Live Chess"]
[Site "Chess.com"]
[Date "2023.05.20"]
[Round "-"]
[White "alexholowczak"]
[Black "Duke_of_Bebington"]
[Result "1-0"]
[WhiteElo "1673"]
[BlackElo "1583"]
[TimeControl "300"]
[EndTime "14:09:56 PDT"]
[Termination "alexholowczak won by checkmate"]

1. e4 {[%clk 0:04:57.1]} 1... e5 {[%clk 0:04:59]} 2. Nf3 {[%clk 0:04:56]} 2...
Nf6 {[%clk 0:04:57.4]} 3. Nxe5 {[%clk 0:04:53.1]} 3... d6 {[%clk 0:04:56]} 4.
Nf3 {[%clk 0:04:51.6]} 4... Nxe4 {[%clk 0:04:55]} 5. Qe2 {[%clk 0:04:50.7]} 5...
Qe7 {[%clk 0:04:53.8]} 6. d3 {[%clk 0:04:49.9]} 6... Nf6 {[%clk 0:04:52.8]} 7.
Bg5 {[%clk 0:04:48.9]} 7... Be6 {[%clk 0:04:50.2]} 8. Nc3 {[%clk 0:04:45.5]}
8... h6 {[%clk 0:04:43.3]} 9. Bh4 {[%clk 0:04:43.6]} 9... d5 {[%clk 0:04:34.9]}
10. O-O-O {[%clk 0:04:40.6]} 10... Nc6 {[%clk 0:04:28.8]} 11. d4 {[%clk
0:04:37]} 11... g5 {[%clk 0:04:19.5]} 12. Bg3 {[%clk 0:04:35.4]} 12... Bg7
{[%clk 0:04:19]} 13. Qb5 {[%clk 0:04:33.9]} 13... O-O-O {[%clk 0:04:14.2]} 14.
Na4 {[%clk 0:04:16.5]} 14... a6 {[%clk 0:04:08.7]} 15. Qb3 {[%clk 0:04:10.6]}
15... Ne4 {[%clk 0:04:02]} 16. h4 {[%clk 0:03:44.7]} 16... Bg4 {[%clk 0:03:39]}
17. Re1 {[%clk 0:03:12.6]} 17... Qf6 {[%clk 0:03:11.9]} 18. Rxe4 {[%clk
0:03:01]} 18... dxe4 {[%clk 0:03:06.3]} 19. Nc5 {[%clk 0:02:59.6]} 19... b6
{[%clk 0:02:48.2]} 20. Bxa6+ {[%clk 0:02:57.6]} 20... Kb8 {[%clk 0:02:45.9]} 21.
Qxb6+ {[%clk 0:02:55.7]} 21... Ka8 {[%clk 0:02:40.3]} 22. Qb7# {[%clk
0:02:54.5]} 1-0

[Event "Live Chess"]
[Site "Chess.com"]
[Date "2023.05.20"]
[Round "-"]
[White "grillage"]
[Black "bristolunichess"]
[Result "0-1"]
[WhiteElo "1843"]
[BlackElo "1818"]
[TimeControl "300"]
[EndTime "14:10:00 PDT"]
[Termination "bristolunichess won by resignation"]

1. d4 {[%clk 0:04:58.7]} 1... g6 {[%clk 0:04:59.9]} 2. Nc3 {[%clk 0:04:54.8]}
2... Bg7 {[%clk 0:04:59.8]} 3. e4 {[%clk 0:04:53.4]} 3... Nf6 {[%clk 0:04:59.7]}
4. e5 {[%clk 0:04:49]} 4... d6 {[%clk 0:04:59.6]} 5. exf6 {[%clk 0:04:47.2]}
5... Bxf6 {[%clk 0:04:57.9]} 6. Nf3 {[%clk 0:04:40.4]} 6... h5 {[%clk
0:04:56.6]} 7. Bg5 {[%clk 0:04:36.8]} 7... Bg7 {[%clk 0:04:52.8]} 8. Bc4 {[%clk
0:04:31.8]} 8... c6 {[%clk 0:04:47.8]} 9. Bb3 {[%clk 0:04:24.8]} 9... d5 {[%clk
0:04:46.5]} 10. Qd2 {[%clk 0:04:18.1]} 10... Bg4 {[%clk 0:04:44.5]} 11. Qe3
{[%clk 0:04:06.3]} 11... f6 {[%clk 0:04:42.5]} 12. Bf4 {[%clk 0:03:58]} 12... g5
{[%clk 0:04:40.1]} 13. Bxb8 {[%clk 0:03:46.9]} 13... Rxb8 {[%clk 0:04:32.4]} 14.
h3 {[%clk 0:03:42.9]} 14... Bxf3 {[%clk 0:04:22]} 15. Qxf3 {[%clk 0:03:40.1]}
15... Qd7 {[%clk 0:04:16.7]} 16. O-O-O {[%clk 0:03:32.8]} 16... g4 {[%clk
0:04:15.7]} 17. Qe3 {[%clk 0:03:27.3]} 17... Bh6 {[%clk 0:04:14]} 18. f4 {[%clk
0:03:16.5]} 18... gxf3 {[%clk 0:04:12]} 19. Qxh6 {[%clk 0:02:59.9]} 19... Rxh6
{[%clk 0:04:11.9]} 20. gxf3 {[%clk 0:02:59.3]} 20... Qf5 {[%clk 0:04:09.5]} 21.
Rde1 {[%clk 0:02:53.1]} 21... Qxf3 {[%clk 0:04:00.3]} 22. Rhf1 {[%clk
0:02:50.9]} 22... Qxh3 {[%clk 0:03:57.1]} 23. Na4 {[%clk 0:02:49.8]} 23... b6
{[%clk 0:03:55.7]} 24. Nc3 {[%clk 0:02:46.1]} 24... Qg4 {[%clk 0:03:52.1]} 25.
Rg1 {[%clk 0:02:44.3]} 25... Qf4+ {[%clk 0:03:46.1]} 26. Kb1 {[%clk 0:02:42.6]}
26... Kf7 {[%clk 0:03:45.4]} 27. Rgf1 {[%clk 0:02:40.5]} 27... Qxd4 {[%clk
0:03:44.2]} 28. Ne2 {[%clk 0:02:38.7]} 28... Qc5 {[%clk 0:03:41.8]} 29. c3
{[%clk 0:02:37.8]} 29... h4 {[%clk 0:03:40.6]} 30. Bc2 {[%clk 0:02:35.7]} 30...
h3 {[%clk 0:03:39.3]} 31. Ng3 {[%clk 0:02:33.7]} 31... Re8 {[%clk 0:03:35.6]}
32. Nf5 {[%clk 0:02:29.8]} 32... Rh5 {[%clk 0:03:32.3]} 33. Ng3 {[%clk
0:02:27.1]} 33... Rg5 {[%clk 0:03:29.8]} 34. Ne2 {[%clk 0:02:23.2]} 34... h2
{[%clk 0:03:28.9]} 35. Nd4 {[%clk 0:02:21.4]} 35... Rh8 {[%clk 0:03:23.8]} 36.
Rh1 {[%clk 0:02:20]} 36... Qd6 {[%clk 0:03:14.6]} 37. Nf5 {[%clk 0:02:16.1]}
37... Rxf5 {[%clk 0:03:13.6]} 38. Bxf5 {[%clk 0:02:15.1]} 38... e5 {[%clk
0:03:07.7]} 39. Re2 {[%clk 0:02:10.8]} 39... e4 {[%clk 0:03:06.7]} 40. Rg2
{[%clk 0:02:08.1]} 40... Rh6 {[%clk 0:03:04.5]} 41. a3 {[%clk 0:02:07.1]} 41...
Qe5 {[%clk 0:03:03.5]} 42. Bg4 {[%clk 0:02:02.5]} 42... f5 {[%clk 0:03:02.4]}
43. Be2 {[%clk 0:01:54.8]} 43... f4 {[%clk 0:03:00.5]} 44. Rgxh2 {[%clk
0:01:54.2]} 44... Rxh2 {[%clk 0:03:00]} 45. Rxh2 {[%clk 0:01:53.5]} 45... f3
{[%clk 0:02:59.9]} 46. Rh7+ {[%clk 0:01:51.8]} 46... Kg6 {[%clk 0:02:58.9]} 0-1

[Event "Live Chess"]
[Site "Chess.com"]
[Date "2023.05.20"]
[Round "-"]
[White "SupremeTactician"]
[Black "AttackingSnowLeopard"]
[Result "1-0"]
[WhiteElo "2363"]
[BlackElo "2065"]
[TimeControl "300"]
[EndTime "14:10:10 PDT"]
[Termination "SupremeTactician won by resignation"]

1. e4 {[%clk 0:04:58.7]} 1... e5 {[%clk 0:04:58.5]} 2. Nf3 {[%clk 0:04:57.1]}
2... Nc6 {[%clk 0:04:57.3]} 3. Nc3 {[%clk 0:04:56.8]} 3... Nf6 {[%clk
0:04:55.9]} 4. Bb5 {[%clk 0:04:56.5]} 4... Bd6 {[%clk 0:04:54.2]} 5. O-O {[%clk
0:04:54.7]} 5... O-O {[%clk 0:04:52.8]} 6. d3 {[%clk 0:04:49.6]} 6... a6 {[%clk
0:04:51.4]} 7. Bc4 {[%clk 0:04:46.5]} 7... h6 {[%clk 0:04:49.8]} 8. Be3 {[%clk
0:04:43.3]} 8... Bb4 {[%clk 0:04:48.2]} 9. h3 {[%clk 0:04:42.2]} 9... d6 {[%clk
0:04:47]} 10. a3 {[%clk 0:04:40]} 10... Bxc3 {[%clk 0:04:44.8]} 11. bxc3 {[%clk
0:04:39.9]} 11... Be6 {[%clk 0:04:42.8]} 12. Bb3 {[%clk 0:04:36.4]} 12... Ne7
{[%clk 0:04:40.2]} 13. Nh4 {[%clk 0:04:32.5]} 13... Bxb3 {[%clk 0:04:35.5]} 14.
cxb3 {[%clk 0:04:30.6]} 14... d5 {[%clk 0:04:35]} 15. f3 {[%clk 0:04:25.9]}
15... Ng6 {[%clk 0:04:32]} 16. Nxg6 {[%clk 0:04:23.5]} 16... fxg6 {[%clk
0:04:31.1]} 17. Qd2 {[%clk 0:04:18.6]} 17... c6 {[%clk 0:04:28.2]} 18. Rad1
{[%clk 0:04:14.9]} 18... Qd7 {[%clk 0:04:26.6]} 19. a4 {[%clk 0:04:14]} 19... g5
{[%clk 0:04:25]} 20. Bc5 {[%clk 0:04:09.5]} 20... Rfe8 {[%clk 0:04:23.6]} 21. b4
{[%clk 0:04:08.1]} 21... Nh5 {[%clk 0:04:21.5]} 22. exd5 {[%clk 0:04:06.2]}
22... cxd5 {[%clk 0:04:20]} 23. c4 {[%clk 0:04:04.4]} 23... d4 {[%clk
0:04:18.5]} 24. Qe1 {[%clk 0:03:59.5]} 24... Nf4 {[%clk 0:04:15]} 25. a5 {[%clk
0:03:56.2]} 25... Qf5 {[%clk 0:04:09]} 26. Qe4 {[%clk 0:03:53.2]} 26... Qf7
{[%clk 0:03:58.1]} 27. Kh2 {[%clk 0:03:45.5]} 27... Rac8 {[%clk 0:03:54.3]} 28.
g3 {[%clk 0:03:41.5]} 28... Ng6 {[%clk 0:03:53.3]} 29. Rde1 {[%clk 0:03:34.9]}
29... Re6 {[%clk 0:03:49.9]} 30. Kg2 {[%clk 0:03:31]} 30... Rce8 {[%clk
0:03:48.3]} 31. Qd5 {[%clk 0:03:27.1]} 31... Kh7 {[%clk 0:03:45.9]} 32. Re2
{[%clk 0:03:17.4]} 32... Qf5 {[%clk 0:03:40.3]} 33. Qe4 {[%clk 0:03:11.5]} 33...
Qf6 {[%clk 0:03:38.9]} 34. Qxb7 {[%clk 0:03:05.7]} 34... Ne7 {[%clk 0:03:19.6]}
35. Bxe7 {[%clk 0:03:02.3]} 35... R8xe7 {[%clk 0:03:18.3]} 36. Qe4+ {[%clk
0:03:00.7]} 36... Kh8 {[%clk 0:03:18]} 37. b5 {[%clk 0:02:59.6]} 37... axb5
{[%clk 0:03:13.4]} 38. cxb5 {[%clk 0:02:59.5]} 38... h5 {[%clk 0:03:12.7]} 39.
b6 {[%clk 0:02:54.9]} 39... h4 {[%clk 0:03:12.2]} 40. gxh4 {[%clk 0:02:52.6]}
40... gxh4 {[%clk 0:03:11]} 41. Rc2 {[%clk 0:02:48]} 41... Qg5+ {[%clk
0:03:01.6]} 42. Kh2 {[%clk 0:02:46]} 42... Qg3+ {[%clk 0:02:59.9]} 43. Kh1
{[%clk 0:02:39.3]} 43... Qxh3+ {[%clk 0:02:24.4]} 44. Kg1 {[%clk 0:02:37.2]}
44... Re8 {[%clk 0:02:07.1]} 45. Rff2 {[%clk 0:02:13.3]} 45... Qg3+ {[%clk
0:01:59.9]} 46. Rg2 {[%clk 0:02:11.2]} 46... Qf4 {[%clk 0:01:56.1]} 47. Rg4
{[%clk 0:01:58.5]} 47... Qxe4 {[%clk 0:01:51.2]} 48. fxe4 {[%clk 0:01:57]} 48...
Rh6 {[%clk 0:01:45.9]} 49. Rh2 {[%clk 0:01:48.1]} 49... Kg8 {[%clk 0:01:26.2]}
50. Rhxh4 {[%clk 0:01:43.6]} 50... Rc6 {[%clk 0:01:25.7]} 51. Rg2 {[%clk
0:01:28.6]} 51... Rc3 {[%clk 0:01:06.8]} 52. Rhg4 {[%clk 0:01:08]} 52... Re7
{[%clk 0:01:03.7]} 53. a6 {[%clk 0:01:06.3]} 53... Rxd3 {[%clk 0:01:00.8]} 54.
b7 {[%clk 0:01:02.5]} 54... Rb3 {[%clk 0:00:52.5]} 55. a7 {[%clk 0:01:01.5]} 1-0